bitfinex/quotes_ETHUSD_20211001
["timestamp","ask_amount","ask_price","bid_price","bid_amount"]
[1633100320187,3.11537,3210.3,3210.2,1.90074227]
[1633100320389,3.11537,3210.3,3210.2,1.89995544]
[1633100320791,3.11537,3210.3,3210.2,0.003]
[1633100321991,3.11537,3210.3,3210.2,1.297]
[1633100322196,2.3082,3211.3,3210.2,3.58892863]
[1633100322394,1.0,3211.3,3210.3,1.8934994]
[1633100322590,1.0,3211.3,3210.3,2.0464994]
[1633100322792,0.003,3211.5,3210.4,1.8959408]
[1633100322993,1.03330086,3210.5,3210.4,0.003]
[1633100323190,1.03330086,3210.5,3210.3,0.15]
[1633100323391,1.03330086,3210.5,3210.4,0.003]
[1633100324991,4.14783086,3210.5,3210.4,0.003]
[1633100325995,3.11463,3210.8,3210.5,0.42116397]
[1633100326196,0.003,3211.5,3210.7,0.058213]
[1633100326397,0.003,3211.5,3210.7,1.808913]
[1633100326597,0.003,3211.5,3211.0,4.67017]
[1633100326995,1.16470169,3211.3,3211.0,4.67017]
[1633100328200,0.84581125,3211.0,3210.9,6.22689]
[1633100328598,0.84581125,3211.0,3210.7,0.058213]
[1633100328799,0.84581125,3211.0,3210.5,0.42416397]
[1633100329197,1.96261125,3211.0,3210.5,0.42416397]
[1633100329398,0.84581125,3211.0,3210.5,0.42416397]
[1633100329599,1.03469746,3210.8,3210.5,0.42416397]
[1633100331000,4.14937746,3210.8,3210.5,0.42416397]
[1633100331198,1.4018,3210.6,3210.5,0.42416397]
[1633100333602,4.14937746,3210.8,3210.5,0.65254995]
[1633100333804,4.14937746,3210.8,3210.5,0.49692738]
[1633100334404,3.11468,3210.8,3210.5,0.49692738]
[1633100334803,3.11468,3210.8,3210.6,4.67159]
[1633100335006,3.11468,3210.8,3210.5,0.49692738]
[1633100335403,3.11468,3210.8,3210.5,0.2685414]
[1633100336006,0.99644157,3210.7,3210.5,0.2685414]
[1633100338009,1.294,3210.6,3210.5,0.2685414]
[1633100338406,5.66853157,3210.7,3210.5,0.2685414]
[1633100338610,0.95081825,3210.3,3209.8,0.24566815]
[1633100338808,0.95081825,3210.3,3209.9,0.003]
[1633100339709,3.1150458,3210.1,3209.8,0.09005293]
[1633100340511,0.95457334,3210.0,3209.8,0.09005293]
[1633100340910,3.1150458,3210.1,3209.8,0.09005293]
[1633100342109,1.02089321,3210.0,3209.8,0.09005293]
[1633100342308,1.02089321,3210.0,3209.7,2.48]
[1633100342911,1.4301,3209.9,3209.7,2.48]
[1633100343114,1.4301,3209.9,3209.5,0.003]
[1633100343115,9.02597495,3209.5,3209.2,0.5314107]
[1633100343314,9.02597495,3209.5,3209.1,2.39673958]
[1633100343315,0.026371,3209.3,3209.1,2.39673958]
[1633100343510,0.73689611,3209.3,3209.0,0.003]
[1633100343713,3.13044418,3209.2,3209.0,0.003]
[1633100343909,0.73689611,3209.3,3208.8,0.003]
[1633100344109,0.73689611,3209.3,3208.6,3.01248982]
[1633100344110,0.88480735,3209.1,3208.7,0.003]
[1633100344312,0.73689611,3209.3,3208.7,0.003]
[1633100344711,4.67532,3209.0,3208.7,0.003]
[1633100344916,3.11675,3208.9,3208.7,0.003]
[1633100345578,1.02698932,3208.8,3208.7,0.003]
[1633100345778,1.95207261,3208.8,3208.7,0.003]
[1633100345979,1.95207261,3208.8,3208.6,0.003]
[1633100347377,0.92508329,3208.8,3208.6,0.003]
[1633100348378,0.92508329,3208.8,3208.5,0.006]
[1633100348984,1.11202764,3208.6,3208.5,0.006]
[1633100349185,0.92508329,3208.8,3208.5,0.006]
[1633100349782,3.11675,3208.9,3208.4,0.006]
[1633100350782,3.90275945,3208.9,3208.4,0.006]
[1633100351382,0.94518675,3208.7,3208.4,0.006]
[1633100352783,5.62068675,3208.7,3208.5,1.8981837]
[1633100353183,5.62068675,3208.7,3208.6,0.003]
[1633100353783,5.62068675,3208.7,3208.4,0.006]
[1633100357886,0.94518675,3208.7,3208.4,0.006]
[1633100360087,3.11701,3208.8,3208.4,0.0143153]
[1633100360299,1.0,3209.1,3208.6,1.294]
[1633100360488,1.0,3209.0,3208.7,0.08580558]
[1633100360691,1.0,3209.0,3208.7,0.08880558]
[1633100360887,7.88417495,3209.5,3208.9,0.34535056]
[1633100361087,7.88417495,3209.5,3208.8,0.003]
[1633100361291,7.88417495,3209.5,3209.2,0.78284055]
[1633100361488,7.88417495,3209.5,3209.2,4.67339]
[1633100363493,7.88417495,3209.5,3209.4,13.37443255]
[1633100363693,7.88417495,3209.5,3209.4,2.01210073]
[1633100363894,7.88417495,3209.5,3209.4,12.18384073]
[1633100364090,7.88417495,3209.5,3209.4,6.68384073]
[1633100364293,7.88417495,3209.5,3209.4,13.89169703]
[1633100364494,7.88417495,3209.5,3209.4,16.74066924]
[1633100364690,7.88417495,3209.5,3209.4,19.12513266]
[1633100364892,0.003,3210.0,3209.5,3.77792642]
[1633100365091,0.003,3210.0,3209.6,2.03673269]
[1633100365292,0.003,3210.0,3209.7,1.88672224]
[1633100365496,0.003,3210.0,3209.9,9.08465679]
[1633100365692,0.003,3210.0,3209.9,2.1209901]
[1633100365891,0.003,3210.0,3209.9,2.94889116]
[1633100366091,0.003,3210.0,3209.9,6.7923401]
[1633100366297,0.003,3210.0,3209.9,1.88633331]
[1633100366492,0.003,3210.0,3209.8,0.4875909]
[1633100367096,0.003,3210.0,3209.9,7.51748536]
[1633100367492,1.88576107,3210.7,3209.9,2.84513536]
[1633100367692,1.09783991,3210.7,3210.0,1.88842928]
[1633100367893,3.11516,3210.2,3210.0,1.88842928]
[1633100368895,3.11516,3210.2,3210.0,6.56021928]
[1633100369095,3.11516,3210.2,3210.1,1.89126764]
[1633100369696,3.11516,3210.2,3210.1,1.73564623]
[1633100369894,3.11516,3210.2,3210.0,4.67179]
[1633100370692,3.11516,3210.2,3210.0,4.68010126]
[1633100378097,1.19015601,3210.4,3210.0,0.00831126]
[1633100378298,3.11434,3210.8,3210.0,0.00831126]
[1633100378499,3.11434,3210.8,3210.0,0.53949851]
[1633100378698,3.11434,3210.8,3210.2,4.67146]
[1633100379297,1.09270053,3210.4,3210.2,4.67146]
[1633100379906,0.9839407,3210.5,3210.2,4.67146]
[1633100379907,0.003,3210.5,3210.2,4.67146]
[1633100380902,0.003,3210.5,3210.3,2.62366598]
[1633100381102,0.003,3210.5,3210.4,0.5875233]
[1633100381303,0.003,3210.5,3210.4,0.58733958]
[1633100381503,0.79742716,3211.3,3210.8,0.86216128]
[1633100381704,0.79742716,3211.3,3210.8,0.70653987]
[1633100381902,0.79742716,3211.3,3210.5,0.53199947]
[1633100382102,3.11382,3211.2,3210.8,4.67104]
[1633100382502,1.12573927,3211.0,3210.8,4.67104]
[1633100382706,3.11382,3211.2,3210.8,4.67104]
[1633100383104,3.11382,3211.2,3210.7,0.28870124]
[1633100383303,3.11382,3211.2,3211.0,4.90348801]
[1633100383608,4.23933417,3211.2,3211.0,4.90348801]
[1633100385010,3.11382,3211.2,3211.0,4.90348801]
[1633100385606,0.003,3211.5,3211.0,4.90348801]
[1633100385811,0.003,3211.5,3211.3,0.33009617]
[1633100386108,0.003,3211.5,3211.3,0.25131748]
[1633100386710,0.003,3211.5,3211.2,0.032471]
[1633100386909,0.003,3211.5,3211.4,4.66979]
[1633100387108,0.003,3211.5,3211.4,4.94915553]
[1633100387716,0.003,3211.5,3211.4,4.79353412]
[1633100389110,0.003,3211.5,3211.4,5.60584522]
[1633100389510,0.003,3211.5,3211.4,4.79353412]
[1633100390712,0.003,3211.5,3211.4,0.33886535]
[1633100390910,0.003,3211.5,3211.4,0.22453911]
[1633100391111,0.003,3211.5,3211.4,0.20464237]
[1633100391313,0.003,3211.5,3211.4,0.27076099]
[1633100391511,0.003,3211.5,3211.3,6.22629]
[1633100391711,0.003,3211.5,3211.4,0.30826416]
[1633100391921,0.003,3211.5,3211.0,0.35208111]
[1633100392514,0.003,3211.5,3211.0,0.87822594]
[1633100392714,0.003,3211.5,3211.0,0.99631817]
[1633100392918,0.003,3211.5,3211.1,0.31776443]
[1633100393215,0.003,3211.5,3211.3,4.67031]
[1633100393681,0.003,3211.5,3211.4,0.26285757]
[1633100393881,0.003,3211.5,3211.3,4.67031]
[1633100394081,0.003,3211.5,3211.4,0.21103501]
[1633100394283,0.003,3211.5,3211.3,4.67031]
[1633100394683,0.003,3211.5,3211.4,0.27805006]
[1633100394882,0.003,3211.5,3211.4,0.25704339]
[1633100395082,0.003,3211.5,3211.3,4.67031]
[1633100395485,0.003,3211.5,3211.4,0.23301158]
[1633100395783,0.003,3211.5,3211.4,0.31427757]
[1633100395983,0.003,3211.5,3211.4,0.31182708]
[1633100396183,0.003,3211.5,3211.4,0.23182686]
[1633100396886,4.90213686,3211.3,3210.5,0.5295502]
[1633100397086,0.15,3211.2,3210.5,0.003]
[1633100397884,1.08704696,3210.6,3210.5,0.003]
[1633100398087,1.08704696,3210.6,3210.4,0.003]
[1633100398283,1.23704696,3210.6,3210.4,0.003]
[1633100398483,0.15,3210.6,3210.4,0.003]
[1633100398684,3.11451,3211.1,3210.4,0.003]
[1633100398685,0.15,3211.1,3210.4,0.003]
[1633100398885,0.15,3211.1,3210.4,0.33537831]
[1633100399083,0.15,3211.1,3210.4,5.00698831]
[1633100399284,0.15,3211.1,3210.5,0.003]
[1633100399501,3.11407,3211.2,3210.8,0.9487984]
[1633100399689,0.003,3211.5,3211.0,0.064514]
[1633100399887,0.003,3211.5,3211.1,1.87714777]
[1633100400087,0.003,3211.5,3211.4,16.22559637]
[1633100400291,0.006,3212.2,3212.1,9.54926328]
[1633100400493,0.006,3213.2,3213.1,1.29355781]
[1633100400692,0.006,3213.3,3213.2,8.06046434]
[1633100400890,1.5803857,3214.4,3213.5,13.25]
[1633100401090,0.05,3213.9,3213.7,2.52598153]
[1633100401287,0.05,3213.9,3213.8,6.70591789]
[1633100401489,0.05,3213.9,3213.8,12.80729217]
[1633100401687,0.01803592,3214.5,3214.0,0.22437104]
[1633100401893,0.01803592,3214.5,3214.2,0.21112873]
[1633100402089,0.01803592,3214.5,3214.4,0.25222597]
[1633100402288,0.01803592,3214.5,3214.4,0.27483996]
[1633100402487,0.01803592,3214.5,3214.4,0.26883996]
[1633100402890,0.006,3214.4,3214.3,6.2317]
[1633100403090,0.94130566,3214.4,3214.3,6.2317]
[1633100403293,3.42130566,3214.4,3214.3,6.2317]
[1633100403688,2.486,3214.4,3214.3,7.23777116]
[1633100403889,2.486,3214.4,3214.3,7.70407602]
[1633100404088,2.486,3214.4,3214.3,6.69800486]
[1633100404487,2.486,3214.4,3214.3,7.99200486]
[1633100404688,2.486,3214.4,3214.3,6.69800486]
[1633100405289,2.486,3214.4,3214.3,7.29811636]
[1633100405290,0.006,3214.4,3214.3,7.29811636]
[1633100406295,0.006,3214.4,3214.3,6.41402746]
[1633100406895,0.006,3214.4,3214.3,6.2317]
[1633100407294,1.94003486,3214.4,3214.3,6.2317]
[1633100407893,1.94003486,3214.4,3213.7,0.85695781]
[1633100407894,14.2,3214.3,3213.7,0.85695781]
[1633100408093,0.85695781,3213.7,3213.5,0.003]
[1633100408296,1.70472653,3213.7,3213.5,0.003]
[1633100408507,1.70472653,3213.7,3213.3,0.003]
[1633100408693,2.61542653,3213.7,3213.3,0.003]
[1633100408895,1.62349305,3214.4,3213.7,2.4460506]
[1633100408896,0.006,3214.4,3213.7,2.4460506]
[1633100409094,0.006,3214.4,3214.3,12.529913]
[1633100409296,0.006,3214.4,3214.3,6.48406588]
[1633100409494,0.006,3214.4,3214.3,6.3722]
[1633100409693,0.006,3214.4,3214.3,6.33987254]
[1633100410297,0.006,3214.4,3214.3,6.2222]
[1633100411099,1.3,3214.4,3214.3,6.2222]
[1633100411302,1.3,3214.4,3213.7,1.1839557]
[1633100411598,1.15739377,3213.8,3213.7,1.1839557]
[1633100412400,4.3209649,3213.2,3213.0,0.003]
[1633100412604,2.38032933,3213.2,3213.0,0.003]
[1633100412801,2.38032933,3213.2,3212.6,0.003]
[1633100412802,0.94588928,3213.1,3212.6,0.003]
[1633100412998,3.09870508,3213.0,3212.1,1.21439063]
[1633100413198,5.49303933,3213.2,3212.2,0.006]
[1633100413199,2.38032933,3213.2,3212.2,0.006]
[1633100413398,2.38032933,3213.2,3212.6,0.84544754]
[1633100413802,2.38032933,3213.2,3212.7,0.003]
[1633100414198,5.58850666,3213.2,3212.7,0.003]
[1633100414397,5.58850666,3213.2,3212.2,0.006]
[1633100414802,3.18945135,3213.1,3211.8,0.009]
[1633100414999,0.85623069,3212.2,3212.0,0.71729122]
[1633100415199,0.8265717,3212.6,3212.0,0.71729122]
[1633100415405,3.72676833,3213.0,3212.1,0.006]
[1633100415602,2.38032933,3213.2,3212.1,0.006]
[1633100415603,1.0595,3213.1,3212.1,0.006]
[1633100415798,2.38032933,3213.2,3212.0,0.57065667]
[1633100416000,0.003,3213.0,3212.0,0.57065667]
[1633100416204,1.18572337,3212.5,3212.0,0.77474414]
[1633100416400,1.18572337,3212.5,3212.1,0.28736272]
[1633100416800,1.18572337,3212.5,3212.0,0.57065667]
[1633100417403,1.18572337,3212.5,3212.3,4.66862]
[1633100417602,1.18572337,3212.5,3212.0,0.003]
[1633100417809,1.294,3212.3,3212.0,0.003]
[1633100418006,1.18572337,3212.5,3211.9,0.003]
[1633100418203,1.18572337,3212.5,3211.6,0.052743]
[1633100418404,1.18572337,3212.5,3211.7,3.11247]
[1633100418603,1.18572337,3212.5,3211.9,0.86896782]
[1633100418807,1.18572337,3212.5,3211.8,0.003]
[1633100419004,2.49602337,3212.5,3212.0,0.003]
[1633100419207,1.2009,3212.4,3212.0,0.003]
[1633100419606,1.2009,3212.4,3211.8,0.003]
[1633100419805,1.03599578,3211.9,3211.6,1.00178752]
[1633100420206,1.03599578,3211.9,3211.7,0.003]
[1633100420606,0.99246461,3212.2,3211.5,0.006]
[1633100421006,0.99246461,3212.2,3211.5,0.9932553]
[1633100421409,0.99246461,3212.2,3211.6,0.003]
[1633100421608,1.20815701,3211.8,3211.6,0.003]
[1633100422009,1.2029,3212.4,3211.6,7.7852138]
[1633100422210,1.1855,3212.5,3211.7,0.056195]
[1633100422415,1.0543,3212.5,3211.7,0.059195]
[1633100422611,1.2621,3212.4,3211.8,0.003]
[1633100422811,1.0078,3212.3,3211.8,0.003]
[1633100423012,0.9133,3212.6,3212.1,0.72568729]
[1633100423211,1.0,3212.7,3212.1,0.72568729]
[1633100423611,1.447,3212.6,3212.1,0.72568729]
[1633100423809,1.2934,3212.5,3212.1,0.72568729]
[1633100424020,1.15414589,3212.9,3212.6,0.97866759]
[1633100424211,1.15414589,3212.9,3211.9,4.66928]
[1633100424408,1.029371,3213.0,3211.9,4.66928]
[1633100424610,1.029371,3213.0,3212.0,0.003]
[1633100424808,1.209371,3213.0,3212.0,0.003]
[1633100425009,1.4364,3212.8,3212.0,0.003]
[1633100425208,0.029371,3213.0,3212.1,0.84195553]
[1633100425409,1.4782,3212.7,3212.1,0.84195553]
[1633100425613,0.003,3213.0,3212.2,0.25918899]
[1633100425812,1.00142257,3212.6,3212.2,1.45438094]
[1633100426011,1.00142257,3212.6,3212.2,4.30715195]
[1633100426208,1.00142257,3212.6,3212.2,3.11196]
[1633100426410,0.003,3213.0,3212.2,3.12021168]
[1633100427009,1.003,3213.0,3212.2,3.12021168]
[1633100427211,2.4036,3213.0,3212.5,4.66794]
[1633100427411,3.25535798,3213.0,3212.5,4.66794]
[1633100427609,1.06319193,3212.9,3212.5,4.66794]
[1633100427811,2.06319193,3212.9,3212.5,4.66794]
[1633100428813,1.47970358,3212.5,3212.0,6.22783]
[1633100429013,1.0,3212.8,3212.0,0.003]
[1633100429014,1.48656867,3212.2,3212.0,0.003]
[1633100429412,1.48656867,3212.2,3211.5,0.006]
[1633100429820,1.48656867,3212.2,3212.1,0.90960132]
[1633100430016,2.48656867,3212.2,3212.1,0.90960132]
[1633100430813,1.48656867,3212.2,3212.1,0.90960132]
[1633100431013,1.48656867,3212.2,3212.1,5.57855132]
[1633100431615,1.48656867,3212.2,3212.1,4.66895]
[1633100432015,1.48741841,3212.2,3212.1,4.66895]
[1633100433020,1.48741841,3212.2,3212.0,0.06874563]
[1633100433418,1.48741841,3212.2,3212.0,0.07174563]
[1633100433616,2.67397753,3212.2,3212.0,0.07174563]
[1633100434221,2.67397753,3212.2,3212.0,0.003]
[1633100434222,2.6052319,3212.2,3212.0,0.003]
[1633100434420,2.6052319,3212.2,3212.0,3.1161]
[1633100434616,2.6052319,3212.2,3212.0,3.1131]
[1633100435218,2.6052319,3212.2,3211.9,3.503]
[1633100435416,0.95292274,3212.0,3211.9,0.003]
[1633100435617,0.95292274,3212.0,3211.8,4.66951]
[1633100435822,2.6052319,3212.2,3211.8,4.66951]
[1633100436017,0.74620191,3212.1,3211.8,4.66951]
[1633100436216,0.74620191,3212.1,3211.9,0.003]
[1633100436416,2.6052319,3212.2,3211.9,6.22879]
[1633100436417,1.41867278,3212.2,3211.9,6.22879]
[1633100436817,1.41867278,3212.2,3212.0,0.003]
[1633100437820,2.41867278,3212.2,3212.0,0.003]
[1633100438818,1.41867278,3212.2,3212.0,0.003]
[1633100439018,1.41867278,3212.2,3211.9,11.68726875]
[1633100439218,1.41867278,3212.2,3212.0,0.05531739]
[1633100439420,1.95498515,3212.3,3212.0,0.05531739]
[1633100439421,1.0,3212.3,3212.0,0.05531739]
[1633100439623,1.0,3212.3,3212.1,4.66914]
[1633100439822,0.003,3212.9,3212.1,4.66914]
[1633100439823,1.0,3212.6,3212.1,4.66914]
[1633100440219,0.003,3212.5,3212.3,1.15690179]
[1633100440419,0.003,3212.5,3212.1,4.66914]
[1633100440820,1.0,3212.4,3212.1,4.66914]
[1633100441022,1.0,3212.4,3212.2,3.11348]
[1633100441220,1.0,3212.4,3212.3,4.66895]
[1633100442023,0.003,3212.5,3212.3,4.66895]
[1633100442421,0.003,3212.5,3212.3,7.7812763]
[1633100442824,1.003,3212.5,3212.3,7.7812763]
[1633100443220,1.003,3212.5,3212.4,0.74330753]
[1633100443421,1.003,3212.5,3212.3,7.7812763]
[1633100443927,0.003,3212.5,3212.3,7.7812763]
[1633100444320,0.003,3212.5,3212.3,8.78464569]
[1633100445122,0.003,3212.5,3212.3,7.7812763]
[1633100445321,0.003,3212.5,3212.3,7.83654285]
[1633100445927,0.86134764,3212.4,3212.3,7.83654285]
[1633100446723,0.003,3212.5,3212.3,7.83654285]
[1633100447526,0.003,3212.5,3212.4,0.71068265]
[1633100448727,0.003,3213.0,3212.5,12.25]
[1633100448926,0.006,3214.4,3213.7,0.3689694]
[1633100449125,0.006,3214.4,3213.7,2.6903694]
[1633100449325,0.006,3214.4,3214.1,4.66566]
[1633100449527,0.006,3214.4,3214.3,0.97196276]
[1633100449723,0.006,3214.4,3214.0,6.22088]
[1633100449924,0.006,3214.4,3214.2,3.11091]
[1633100450726,0.7346,3214.4,3214.2,3.11091]
[1633100450925,1.86956224,3214.4,3214.2,3.11091]
[1633100451726,1.86956224,3214.4,3214.3,0.0549877]
[1633100452729,1.87068073,3214.4,3214.3,0.0549877]
[1633100453126,0.00711849,3214.4,3214.3,0.0549877]
[1633100453327,0.00711849,3214.4,3214.3,4.7212577]
[1633100456195,0.00711849,3214.4,3214.3,5.5504577]
[1633100456794,0.00711849,3214.4,3214.3,5.39477925]
[1633100457397,0.00711849,3214.4,3214.2,3.11091]
[1633100457598,0.95556617,3214.3,3214.2,3.11091]
[1633100458499,3.16562181,3214.2,3213.7,0.3689694]
[1633100458697,3.16562181,3214.2,3213.5,0.003]
[1633100458698,0.3689694,3213.7,3213.5,0.003]
[1633100458896,0.3689694,3213.7,3212.6,0.006]
[1633100459095,0.3689694,3213.7,3212.8,1.04637377]
[1633100459295,1.08038981,3213.7,3213.1,0.70874821]
[1633100459700,0.3689694,3213.7,3213.2,0.003]
[1633100459899,0.3689694,3213.7,3213.4,3.11163]
[1633100460306,0.3689694,3213.7,3213.5,0.003]
[1633100462002,3.4809994,3213.7,3213.5,0.003]
[1633100463403,0.00098134,3213.6,3213.5,0.003]
[1633100463607,0.00098134,3213.6,3213.5,0.04709968]
[1633100464208,0.00098134,3213.6,3213.4,3.11163]
[1633100464209,0.00098134,3213.6,3213.0,0.003]
[1633100464210,19.13372869,3213.1,3213.0,0.003]
[1633100464506,5.13372869,3213.1,3212.9,0.003]
[1633100464903,0.76433741,3213.0,3212.2,1.81321877]
[1633100465106,0.91433741,3213.0,3212.1,0.006]
[1633100465305,0.91433741,3213.0,3212.3,0.006]
[1633100465509,0.91433741,3213.0,3212.4,3.11291]
[1633100465908,4.02698741,3213.0,3212.5,0.90630993]
[1633100466105,3.87698741,3213.0,3212.5,0.006]
[1633100466305,3.87698741,3213.0,3212.6,0.003]
[1633100466604,3.87698741,3213.0,3212.5,0.006]
[1633100467807,3.87698741,3213.0,3212.0,3.11579]
[1633100467808,1.87193799,3212.4,3212.0,3.11579]
[1633100468010,1.87193799,3212.4,3212.0,0.003]
[1633100468011,0.026962,3212.1,3212.0,0.003]
[1633100468407,0.78903596,3212.2,3211.6,1.82066891]
[1633100468607,1.87193799,3212.4,3211.7,0.003]
[1633100468810,0.15,3212.3,3211.7,0.003]
[1633100469008,0.15,3212.3,3211.4,1.82370241]
[1633100469009,3.1138,3212.2,3211.4,4.93722241]
[1633100469209,3.2638,3212.2,3211.5,1.82995577]
[1633100469407,3.2638,3212.2,3211.6,1.86631381]
[1633100469610,3.2638,3212.2,3211.6,0.04557385]
[1633100469808,7.93437,3212.2,3211.7,0.003]
[1633100470007,3.2638,3212.2,3211.7,0.003]
[1633100470608,0.94399407,3212.1,3211.7,0.003]
[1633100471608,3.1138,3212.2,3211.7,0.003]
[1633100472207,3.1138,3212.2,3211.7,0.01125042]
[1633100472611,1.00444001,3212.0,3211.8,0.003]
[1633100475411,1.00444001,3212.0,3211.9,0.04257461]
[1633100475811,1.00444001,3212.0,3211.9,0.04557461]
[1633100476213,11.2138,3212.2,3210.9,0.38743379]
[1633100476421,11.2138,3212.2,3210.9,1.83440371]
[1633100476422,3.1138,3212.2,3210.9,1.83440371]
[1633100476613,0.003,3211.5,3210.9,1.83440371]
[1633100477011,0.003,3211.5,3211.1,0.90589543]
[1633100477212,0.003,3211.5,3211.2,2.54311692]
[1633100477411,0.003,3211.5,3211.3,1.83108765]
[1633100477615,0.003,3211.5,3211.3,1.78108765]
[1633100477814,0.003,3211.5,3211.2,0.71063891]
[1633100479414,0.003,3211.5,3210.8,8.66736675]
[1633100479718,0.003,3211.5,3210.8,3.11401]
[1633100479917,0.003,3211.5,3210.8,3.99642043]
[1633100480316,0.003,3211.5,3210.8,3.99639548]
[1633100480516,0.91823252,3211.5,3210.9,0.88048161]
[1633100480715,0.003,3211.5,3210.9,0.88048161]
[1633100480917,3.11408,3211.4,3211.0,1.0643966]
[1633100481314,3.11408,3211.4,3210.8,4.03932825]
[1633100481516,3.11408,3211.4,3210.8,3.15659459]
[1633100481716,3.11408,3211.4,3210.8,0.04258459]
[1633100482315,0.81075894,3211.3,3210.8,0.04258459]
[1633100483719,3.11408,3211.4,3210.8,0.04258459]
[1633100485315,8.63233665,3211.4,3210.8,1.0019257]
[1633100485518,3.11408,3211.4,3210.8,1.0019257]
[1633100486318,3.11408,3211.4,3210.9,0.53166773]
[1633100488717,3.11408,3211.4,3211.0,0.53101602]
[1633100489321,3.11408,3211.4,3210.9,0.53122759]
[1633100489516,3.11408,3211.4,3210.8,0.04258459]
[1633100490320,3.11408,3211.4,3210.9,0.91541807]
[1633100491321,3.11408,3211.4,3210.8,0.04258459]
[1633100492119,4.67157,3211.3,3210.8,0.04258459]
[1633100492521,0.003,3211.5,3211.1,1.6902722]
[1633100492720,0.003,3211.5,3211.1,2.72387135]
[1633100492920,0.003,3211.5,3211.1,1.03359915]
[1633100493120,0.003,3211.5,3211.2,0.88329804]
[1633100493320,0.003,3211.5,3211.3,1.87150812]
[1633100493520,0.003,3211.5,3211.4,1.294]
[1633100493921,0.003,3211.5,3211.4,2.17698824]
[1633100494321,0.003,3211.5,3211.4,1.294]
[1633100494522,0.003,3211.5,3211.4,2.17699932]
[1633100494722,0.003,3211.5,3211.4,1.294]
[1633100495322,0.003,3211.5,3211.4,1.32736147]
[1633100497725,1.87193799,3212.4,3211.6,3.11326]
[1633100497925,1.87193799,3212.4,3211.7,3.1131598]
[1633100498724,0.99328657,3212.3,3211.8,0.71007305]
[1633100499125,1.87193799,3212.4,3211.8,0.71007305]
[1633100499525,1.87193799,3212.4,3211.8,5.37958305]
[1633100499926,1.87193799,3212.4,3211.8,4.66951]
[1633100501125,2.85983506,3212.4,3211.8,5.48206411]
[1633100501527,1.87193799,3212.4,3211.8,5.48206411]
[1633100502527,3.11308,3212.2,3211.8,5.48206411]
[1633100502928,3.11308,3212.2,3211.7,3.1131598]
[1633100503128,3.11308,3212.2,3211.4,0.07625271]
[1633100503129,4.67359,3212.0,3211.4,0.07625271]
[1633100503327,0.003,3212.0,3211.4,0.04257995]
[1633100504925,0.003,3212.0,3211.5,3.11348]
[1633100504926,3.11392,3211.9,3211.5,3.11348]
[1633100505126,3.11392,3211.9,3211.6,3.1134121]
[1633100505727,3.11392,3211.9,3211.8,0.78187384]
[1633100506330,3.11392,3211.9,3211.6,3.1134121]
[1633100507330,3.11392,3211.9,3211.8,0.94331937]
[1633100507791,3.11392,3211.9,3211.7,0.03210249]
[1633100508192,3.11392,3211.9,3211.8,1.83016681]
[1633100508790,0.003,3212.0,3211.8,1.83016681]
[1633100509190,0.003,3212.0,3211.7,5.68779737]
[1633100509592,0.003,3212.0,3211.7,1.01825737]
[1633100509793,0.003,3212.0,3211.7,1.06083268]
[1633100509993,0.003,3212.0,3211.8,1.83056588]
[1633100510391,0.003,3212.0,3211.7,1.06083268]
[1633100510595,0.003,3212.0,3211.8,1.11832237]
[1633100510796,0.003,3212.0,3211.9,1.8309258]
[1633100510994,0.003,3212.0,3211.9,3.1249258]
[1633100511197,0.003,3212.5,3212.4,9.37193799]
[1633100511396,0.003,3212.5,3212.4,3.84955989]
[1633100511595,0.003,3212.5,3212.4,6.41561829]
[1633100511794,0.003,3213.0,3212.4,11.33505123]
[1633100511997,0.003,3213.5,3213.1,5.1652461]
[1633100512196,0.006,3214.4,3213.3,12.36565]
[1633100512398,0.006,3214.4,3213.6,0.063642]
[1633100512794,0.9379266,3214.4,3213.8,0.91230664]
[1633100512994,0.9379266,3214.4,3213.8,0.03704098]
[1633100513193,5.64562181,3214.2,3213.8,0.03704098]
[1633100513396,5.64562181,3214.2,3213.7,6.221397]
[1633100514196,3.11151,3214.1,3213.7,6.221397]
[1633100514397,3.16562181,3214.2,3213.8,8.87922128]
[1633100514600,3.16562181,3214.2,3213.9,0.062487]
[1633100514999,0.0010378,3214.0,3213.9,0.062487]
[1633100515198,0.006,3214.4,3214.0,4.85]
[1633100515498,0.006,3214.4,3214.2,4.40406]
[1633100515697,0.006,3214.4,3214.2,3.14338557]
[1633100516295,0.006,3214.4,3214.2,9.38738557]
[1633100516495,0.006,3214.4,3214.2,3.14338557]
[1633100516695,4.67191,3215.4,3214.2,7.83416997]
[1633100516897,0.5549854,3215.2,3214.7,0.0363574]
[1633100517100,0.5549854,3215.2,3214.6,3.11061]
[1633100517299,0.5549854,3215.2,3214.8,1.14868842]
[1633100517506,3.11642,3215.3,3214.8,1.14868842]
[1633100517700,3.11642,3215.3,3215.0,0.90408533]
[1633100517898,3.11642,3215.3,3215.0,3.8944466]
[1633100518098,3.11642,3215.3,3215.1,0.03311388]
[1633100518701,3.11642,3215.3,3215.2,1.294]
[1633100518702,0.006,3215.3,3215.2,1.294]
[1633100518900,0.006,3215.3,3215.2,2.72194688]
[1633100519099,0.006,3215.3,3215.2,1.4612865]
[1633100519698,0.006,3215.3,3215.2,0.03333962]
[1633100520905,0.006,3215.3,3214.8,3.11003]
[1633100520906,0.006,3215.3,3214.8,3.14354294]
[1633100521102,0.006,3215.3,3214.8,3.11003]
[1633100521602,0.82233604,3215.2,3214.8,3.11003]
[1633100522003,0.82233604,3215.2,3214.8,6.2205126]
[1633100522803,0.82233604,3215.2,3214.9,0.0425323]
[1633100523003,3.93305604,3215.2,3214.9,0.0425323]
[1633100523604,0.82233604,3215.2,3214.9,0.0425323]
[1633100523804,0.82233604,3215.2,3214.8,6.12922753]